lending/lending_fUSD_20250621
["ID","MTS","AMOUNT","RATE_DAILY","PERIOD"]
[366852818,1750516243915,-151.0,0.000249,7]
[366852819,1750516243929,-151.0,0.000249,7]
[366852820,1750516243938,-151.0,0.000249,7]
[366852821,1750516243948,-151.0,0.000249,7]
[366852822,1750516243959,-914.748671,0.000249,7]
[366852823,1750516243968,-914.748671,0.000249,7]
[366852824,1750516243978,-151.0,0.000249,7]
[366852825,1750516243994,-210.461369,0.000249,7]
[366852826,1750516244008,-151.0,0.000249,7]
[366852827,1750516244017,-159.160129,0.000249,7]
[366852828,1750516244026,-159.160129,0.000249,7]
[366852829,1750516244036,-1000.0,0.000249,9]
[366852830,1750516244046,-150.0,0.00024914,2]
[366852831,1750516244055,-156.587,0.00024915,2]
[366852832,1750516244065,-215.0738,0.00024915,2]
[366852833,1750516244074,-191.52175083,0.00024923,2]
[366852834,1750516244084,-315.31090303,0.00024931,120]
[366852835,1750516244341,-150.0,0.00024936,10]
[366852836,1750516244383,-150.0,0.00024941,2]
[366852837,1750516244394,-150.0,0.00024956,2]
[366852838,1750516244405,-150.0,0.00024959,2]
[366852839,1750516244416,-500.0,0.0002497,2]
[366852840,1750516244427,-1000.0,0.0002497,2]
[366852841,1750516244437,-151.0,0.00024995,7]
[366852842,1750516244448,-151.0,0.00024995,7]
[366852843,1750516244458,-151.0,0.00024995,7]
[366852844,1750516244468,-167.21979,0.00024995,7]
[366852845,1750516244478,-167.21979,0.00024995,7]
[366852846,1750516244488,-500.0,0.00025,30]
[366852847,1750516244498,-500.0,0.00025,30]
[366852848,1750516244508,-500.0,0.00025,30]
[366852849,1750516244518,-500.0,0.00025,30]
[366852850,1750516244527,-500.0,0.00025,30]
[366852851,1750516244537,-500.0,0.00025,30]
[366852852,1750516244547,-500.0,0.00025,30]
[366852853,1750516244557,-648.93998968,0.00025,30]
[366852854,1750516244568,-1028.34530853,0.00025,5]
[366852855,1750516244578,-500.0,0.00025,30]
[366852856,1750516244588,-500.0,0.00025,30]
[366852857,1750516244599,-500.0,0.00025,30]
[366852858,1750516244610,-500.0,0.00025,30]
[366852859,1750516244620,-500.0,0.00025,30]
[366852860,1750516244630,-500.0,0.00025,30]
[366852861,1750516244640,-500.0,0.00025,30]
[366852862,1750516244651,-500.0,0.00025,30]
[366852863,1750516244661,-698.9085771,0.00025,30]
[366852864,1750516244671,-166.0,0.00025,6]
[366852865,1750516244681,-201.51112756,0.00025,2]
[366852866,1750516244692,-769.0,0.00025,2]
[366852867,1750516244702,-37682.19397023,0.00025,2]
[366852868,1750516244712,-1732.9340371,0.00025,2]
[366852869,1750516244722,-238.0,0.00025,2]
[366852870,1750516244733,-200.0,0.00025,2]
[366852871,1750516244744,-2955.47171375,0.00025,2]
[366852872,1750516244754,-4029.01125864,0.00025,2]
[366852873,1750516244765,-1772.64320346,0.00025,2]
[366852874,1750516244776,-1033.45951923,0.00025,2]
[366852875,1750516244786,-1114.61364518,0.00025,5]
[366852876,1750516244796,-162.41650355,0.00025,2]
[366852877,1750516244807,-151.0,0.00025,7]
[366852878,1750516244817,-151.0,0.00025,7]
[366852879,1750516244828,-151.0,0.00025,7]
[366852880,1750516244838,-376.0,0.00025,2]
[366852881,1750516244849,-202.0,0.00025001,12]
[366852882,1750516244859,-218.18996484,0.00025005,2]
[366852883,1750516244870,-203.19164962,0.00025014,2]
[366852884,1750516244880,-502.33983832,0.00025021,2]
[366852885,1750516244890,-1000.0,0.00025021,2]
[366852886,1750516244900,-150.0,0.00025039,2]
[366852887,1750516244912,-150.0,0.00025043,2]
[366852888,1750516244927,-150.0,0.00025057,2]
[366852889,1750516244938,-192.40500256,0.00025073,10]
[366852890,1750516244948,-200.0,0.00025094,2]
[366852891,1750516244958,-3947.84211834,0.000251,2]
[366852892,1750516244968,-3281.8832695,0.000251,2]
[366852893,1750516244979,-150.0,0.00025118,2]
[366852894,1750516244989,-150.0,0.00025131,2]
[366852895,1750516244999,-150.0,0.00025133,2]
[366852896,1750516245011,-500.0,0.00025138,2]
[366852897,1750516245021,-500.0,0.00025138,2]
[366852898,1750516245031,-500.0,0.00025138,2]
[366852899,1750516245042,-7697.1310959,0.00025171,2]
[366852900,1750516245053,-150.0,0.00025183,2]
[366852901,1750516245064,-168.05619628,0.00025191,2]
[366852902,1750516245074,-168.0,0.00025196,2]
[366852903,1750516245084,-684.34005285,0.0002521,12]
[366852904,1750516245095,-150.0,0.00025216,2]
[366852905,1750516245105,-500.49750435,0.00025221,2]
[366852906,1750516245115,-1000.0,0.00025221,2]
[366852907,1750516245125,-168.0,0.00025226,2]
[366852908,1750516245136,-150.0,0.00025262,2]
[366852909,1750516245146,-150.0,0.00025271,2]
[366852910,1750516245157,-300.0,0.00025286,2]
[366852911,1750516245167,-150.0,0.0002529,2]
[366852912,1750516245178,-1000.0,0.00025321,2]
[366852913,1750516245188,-1000.0,0.00025321,2]
[366852914,1750516245198,-1000.0,0.00025321,2]
[366852915,1750516245208,-150.0,0.00025324,2]
[366852916,1750516245218,-150.0,0.00025334,2]
[366852917,1750516245228,-2000.0,0.00025364,60]
[366852918,1750516245238,-500.0,0.00025364,120]
[366852919,1750516245249,-150.0,0.00025373,2]
[366852920,1750516245259,-150.0,0.00025376,2]
[366852921,1750516245269,-1000.0,0.0002546,2]
[366852922,1750516245279,-168.0,0.00025479,2]
[366852923,1750516245289,-335.63,0.00025479,2]
[366852924,1750516245299,-150.0,0.00025481,2]
[366852925,1750516245309,-168.0,0.00025498,2]
[366852926,1750516245319,-150.0,0.00025504,2]
[366852927,1750516245329,-168.0,0.00025509,2]
[366852928,1750516245339,-300.0,0.00025515,2]
[366852929,1750516245350,-150.0,0.00025518,2]
[366852930,1750516245360,-150.0,0.00025552,2]
[366852931,1750516245370,-150.0,0.00025552,2]
[366852932,1750516245381,-150.0,0.00025555,2]
[366852933,1750516245391,-10086.99364628,0.00025555,2]
[366852934,1750516245401,-150.0,0.00025555,2]
[366852936,1750516245412,-574.97324264,0.00025555,2]
[366852937,1750516245422,-150.0,0.00025555,2]
[366852938,1750516245432,-3899.2712366,0.00025555,2]
[366852939,1750516245442,-150.0,0.00025555,2]
[366852940,1750516245452,-72204.28255776,0.00025555,2]
[366852941,1750516245463,-150.0,0.00025555,2]
[366852942,1750516245473,-5730.30486352,0.00025555,2]
[366852943,1750516245483,-500.0,0.0002557,2]
[366852944,1750516245492,-1000.0,0.0002557,2]
[366852945,1750516245501,-151.0,0.00025583,7]
[366852946,1750516245511,-285.626269,0.00025583,7]
[366852947,1750516245520,-285.626269,0.00025583,7]
[366852948,1750516245530,-151.0,0.00025583,7]
[366852949,1750516245540,-151.0,0.00025583,7]
[366852950,1750516245550,-151.0,0.00025583,7]
[366852951,1750516245559,-225.209043,0.00025583,7]
[366852952,1750516245569,-225.209043,0.00025583,7]
[366852953,1750516245579,-151.0,0.00025583,7]
[366852954,1750516245588,-151.0,0.00025583,7]
[366852955,1750516245598,-151.0,0.00025583,7]
[366852956,1750516245607,-151.0,0.00025583,7]
[366852957,1750516245618,-151.0,0.00025583,7]
[366852958,1750516245628,-151.0,0.00025583,7]
[366852959,1750516245637,-151.0,0.00025583,7]
[366852960,1750516245644,-151.0,0.00025583,7]
[366852961,1750516245652,-243.516087,0.00025583,7]
[366852962,1750516245660,-243.516087,0.00025583,7]
[366852963,1750516245667,-151.0,0.00025593,7]
[366852964,1750516245675,-151.0,0.00025593,7]
[366852965,1750516245685,-151.0,0.00025593,7]
[366852966,1750516245693,-151.0,0.00025593,7]
[366852967,1750516245700,-151.0,0.00025593,7]
[366852968,1750516245707,-151.0,0.00025593,7]
[366852969,1750516245715,-151.0,0.00025593,7]
[366852970,1750516245724,-151.269193,0.00025593,7]
[366852971,1750516245732,-151.0,0.00025593,7]
[366852972,1750516245741,-151.0,0.00025593,7]
[366852973,1750516245750,-242.513944,0.00025593,7]
[366852974,1750516245760,-151.0,0.00025593,7]
[366852975,1750516245769,-459.673518,0.00025593,7]
[366852976,1750516245779,-459.673518,0.00025593,7]
[366852977,1750516245787,-387.0,0.000256,2]
[366852978,1750516245796,-2694.6944,0.000256,2]
[366852979,1750516245804,-2024.4265,0.000256,2]
[366852980,1750516245812,-500.8948,0.000256,2]
[366852981,1750516245822,-3203.4145,0.000256,2]
[366852982,1750516245829,-163.72,0.00025625,2]
[366852983,1750516245838,-1150.54431572,0.00025628,10]
[366852984,1750516245846,-180.0,0.00025644,2]
[366852985,1750516245855,-168.0,0.00025647,2]
[366852986,1750516245863,-168.0,0.00025656,2]
[366852987,1750516245871,-2650.70475882,0.0002567,2]
[366852988,1750516245879,-151.0,0.0002567,7]
[366852989,1750516245887,-151.0,0.0002567,7]
[366852990,1750516245897,-150.0,0.00025671,2]
[366852991,1750516245904,-500.61808236,0.00025686,2]
[366852992,1750516245912,-1000.0,0.00025686,2]
[366852993,1750516245924,-151.0,0.000257,7]
[366852994,1750516245934,-151.0,0.000257,7]
[366852995,1750516245942,-151.0,0.000257,7]
[366852996,1750516245950,-151.0,0.000257,7]
[366852997,1750516245960,-12294.28,0.000257,2]
[366852998,1750516245970,-331.02775709,0.00025709,2]
[366852999,1750516245981,-159.85,0.0002575,2]
[366853000,1750516245991,-151.0,0.00025752,7]
[366853001,1750516246002,-151.0,0.00025752,7]
[366853002,1750516246012,-151.0,0.00025752,7]
[366853003,1750516246022,-153.828957,0.00025752,7]
[366853004,1750516246032,-273.847944,0.00025752,7]
[366853005,1750516246041,-273.847944,0.00025752,7]
[366853006,1750516246051,-300.46,0.00025753,2]
[366853007,1750516246062,-150.0,0.00025753,2]
[366853008,1750516246072,-7697.1310959,0.00025756,2]
[366853009,1750516246082,-684.34005285,0.00025762,13]
[366853010,1750516246092,-1500.0,0.00025768,2]
[366853011,1750516246102,-9885.75424041,0.000258,2]
[366853012,1750516246112,-265.487668,0.000258,7]
[366853013,1750516246122,-285.626269,0.000258,7]
[366853014,1750516246132,-285.626269,0.000258,7]
[366853016,1750516246142,-151.0,0.000258,7]
[366853017,1750516246152,-156.095172,0.000258,7]
[366853018,1750516246162,-225.209043,0.000258,7]
[366853019,1750516246172,-225.209043,0.000258,7]
[366853020,1750516246181,-151.0,0.000258,7]
[366853021,1750516246191,-151.0,0.000258,7]
[366853022,1750516246202,-151.0,0.000258,7]
[366853023,1750516246212,-151.0,0.000258,7]
[366853024,1750516246222,-151.0,0.000258,7]
[366853025,1750516246232,-151.837463,0.000258,7]
[366853026,1750516246242,-151.0,0.000258,7]
[366853027,1750516246251,-151.0,0.000258,7]
[366853028,1750516246261,-243.516087,0.000258,7]
[366853029,1750516246270,-243.516087,0.000258,7]
[366853030,1750516246280,-151.0,0.000258,7]
[366853031,1750516246290,-151.0,0.000258,7]
[366853032,1750516246300,-151.0,0.000258,7]
[366853033,1750516246310,-151.0,0.000258,7]
[366853034,1750516246320,-151.0,0.000258,7]
[366853035,1750516246330,-151.0,0.000258,7]
[366853036,1750516246339,-151.0,0.000258,7]
[366853037,1750516246349,-299.020224,0.000258,7]
[366853038,1750516246358,-289.061344,0.000258,7]
[366853039,1750516246368,-151.0,0.000258,7]
[366853040,1750516246378,-151.0,0.000258,7]
[366853041,1750516246388,-151.0,0.000258,7]
[366853042,1750516246397,-151.0,0.000258,7]
[366853043,1750516246407,-300.0,0.00025834,2]
[366853044,1750516246418,-373.22618801,0.00025844,2]
[366853045,1750516246427,-250.0,0.00025859,2]
[366853046,1750516246438,-1500.0,0.00025868,2]
[366853047,1750516246448,-594.3668883,0.00025868,2]
[366853048,1750516246458,-1421.94343174,0.00025868,2]
[366853049,1750516246468,-340.0,0.000259,2]
[366853050,1750516246478,-151.0,0.000259,7]
[366853051,1750516246488,-184.720313,0.000259,7]
[366853052,1750516246497,-1947.62,0.000259,2]
[366853053,1750516246507,-3947.84211834,0.000259,2]
[366853054,1750516246517,-1400.0,0.000259,9]
[366853055,1750516246527,-168.0,0.00025923,2]
[366853056,1750516246537,-180.0,0.00025923,2]
[366853057,1750516246547,-151.0,0.00025958,2]
[366853058,1750516246557,-168.0,0.0002596,2]
[366853059,1750516246567,-285.87346,0.00025989,2]
[366853060,1750516246576,-582.68100929,0.0002599,2]
[366853061,1750516246586,-2000.0,0.00026,2]
[366853062,1750516246596,-2000.0,0.00026,2]
[366853063,1750516246605,-2000.0,0.00026,2]
[366853064,1750516246615,-2000.0,0.00026,2]
[366853065,1750516246625,-2000.0,0.00026,2]
[366853066,1750516246634,-2000.0,0.00026,2]
[366853067,1750516246644,-2000.0,0.00026,2]
[366853069,1750516246654,-2000.0,0.00026,2]
[366853070,1750516246664,-2000.0,0.00026,2]
[366853071,1750516246674,-4390.43994478,0.00026,2]
[366853072,1750516246685,-1425.0864224,0.00026,2]
[366853073,1750516246695,-309.80503377,0.00026,2]
[366853074,1750516246705,-2000.0,0.00026,2]
[366853075,1750516246716,-1152.5,0.00026,2]
[366853076,1750516246726,-150.0,0.00026,120]
[366853077,1750516246861,-168.0,0.00026035,2]
[366853078,1750516246871,-196.47,0.00026059,2]
[366853079,1750516246881,-168.0,0.00026155,2]
[366853080,1750516246891,-557.14607632,0.00026224,2]
[366853081,1750516246901,-1500.0,0.00026234,2]
[366853082,1750516246911,-168.0,0.00026243,2]
[366853083,1750516246924,-776.31,0.00026247,2]
[366853084,1750516246935,-170.94,0.00026247,2]
[366853085,1750516246945,-355.03,0.00026247,2]
[366853086,1750516246955,-170.94,0.00026247,2]
[366853087,1750516246964,-170.94,0.00026247,2]
[366853088,1750516246973,-360.0,0.00026258,2]
[366853089,1750516246983,-162.380719,0.00026284,2]
[366853090,1750516246992,-223.0315306,0.00026284,2]
[366853091,1750516247002,-444.785,0.0002629,2]
[366853092,1750516247010,-3335.0,0.0002629,2]
[366853093,1750516247019,-4095.0,0.0002629,2]
[366853094,1750516247027,-684.34005285,0.00026314,14]
[366853095,1750516247036,-2003.82223466,0.00026316,2]
[366853096,1750516247043,-168.05619628,0.00026319,2]
[366853097,1750516247050,-150.0,0.00026329,2]
[366853098,1750516247058,-709.58,0.00026329,2]
[366853099,1750516247067,-910.06,0.00026329,2]
[366853100,1750516247074,-170.94,0.00026329,2]
[366853101,1750516247082,-300.0,0.00026329,2]
[366853102,1750516247089,-150.0,0.00026329,2]
[366853103,1750516247097,-150.0,0.00026329,2]
[366853104,1750516247103,-150.0,0.00026329,2]
[366853105,1750516247109,-150.0,0.00026329,2]
[366853106,1750516247116,-170.94,0.00026329,2]
[366853107,1750516247124,-150.0,0.00026329,2]
[366853108,1750516247131,-150.0,0.00026329,2]
[366853109,1750516247140,-170.94,0.00026329,2]
[366853110,1750516247147,-150.0,0.00026329,2]
[366853111,1750516247155,-170.94,0.00026329,2]
[366853112,1750516247162,-150.0,0.00026329,2]
[366853113,1750516247168,-150.0,0.00026329,2]
[366853114,1750516247176,-170.27,0.00026329,2]
[366853115,1750516247184,-150.0,0.00026329,2]
[366853116,1750516247192,-150.0,0.00026329,2]
[366853117,1750516247199,-7697.1310959,0.00026342,2]
[366853118,1750516247207,-202.0,0.00026347,14]
[366853119,1750516247214,-168.0,0.00026351,2]
[366853120,1750516247221,-166.84,0.00026371,2]
[366853121,1750516247229,-151.0,0.0002638,7]
[366853122,1750516247238,-151.0,0.0002638,7]
[366853123,1750516247246,-151.0,0.0002638,7]
[366853124,1750516247255,-300.0,0.00026382,2]
[366853125,1750516247263,-43761.17505741,0.000264,2]
[366853126,1750516247271,-113406.35,0.000264,7]
[366853127,1750516247278,-1194.39014784,0.00026416,2]
[366853128,1750516247286,-357.71891414,0.00026496,120]
[366853129,1750516247292,-180.38371135,0.00026549,2]
[366853130,1750516247300,-168.0,0.00026556,2]
[366853131,1750516247308,-22682.45478961,0.000266,2]
[366853132,1750516247316,-151.0,0.000266,7]
[366853133,1750516247324,-151.0,0.000266,7]
[366853134,1750516247331,-151.0,0.000266,7]
[366853135,1750516247338,-151.0,0.000266,7]
[366853136,1750516247344,-151.0,0.000266,7]
[366853137,1750516247351,-232.165969,0.000266,7]
[366853138,1750516247358,-328.122819,0.000266,7]
[366853139,1750516247366,-232.165969,0.000266,7]
[366853140,1750516247374,-328.122819,0.000266,7]
[366853141,1750516247382,-500.0,0.00026666,3]
[366853142,1750516247389,-151.0,0.00026666,7]
[366853143,1750516247397,-151.0,0.00026666,7]
[366853144,1750516247404,-779.074152,0.00026666,7]
[366853145,1750516247413,-779.074152,0.00026666,7]
[366853146,1750516247422,-151.0,0.00026666,7]
[366853147,1750516247432,-151.0,0.00026666,7]
[366853148,1750516247442,-151.0,0.00026666,7]
[366853149,1750516247452,-151.0,0.00026666,7]
[366853150,1750516247461,-206.306235,0.00026666,7]
[366853151,1750516247471,-206.306235,0.00026666,7]
[366853152,1750516247480,-12294.28,0.000267,2]
[366853153,1750516247490,-3947.84211834,0.000267,2]
[366853154,1750516247499,-151.0,0.0002678,7]
[366853155,1750516247509,-151.0,0.0002678,7]
[366853156,1750516247519,-151.0,0.0002678,7]
[366853157,1750516247529,-151.0,0.0002678,7]
[366853158,1750516247538,-151.0,0.0002678,7]
[366853159,1750516247548,-151.0,0.0002678,7]
[366853160,1750516247557,-151.0,0.0002678,7]
[366853161,1750516247567,-151.0,0.0002678,7]
[366853162,1750516247577,-151.0,0.0002678,7]
[366853163,1750516247586,-225.804174,0.0002678,7]
[366853164,1750516247596,-151.0,0.0002678,7]
[366853165,1750516247606,-2000.0,0.00026782,2]
[366853166,1750516247616,-340.0,0.000268,2]
[366853167,1750516247626,-164.33,0.00026824,2]
[366853168,1750516247635,-405.72,0.00026841,120]
[366853169,1750516247646,-684.34005285,0.00026866,16]
[366853170,1750516247655,-300.0,0.00026879,10]
[366853171,1750516247665,-300.0,0.00026879,10]
[366853172,1750516247675,-300.0,0.00026879,10]
[366853173,1750516247686,-148189.45784651,0.0002688,2]
[366853174,1750516247697,-240462.82433038,0.0002688,2]
[366853175,1750516247707,-151.0,0.0002688,7]
[366853176,1750516247716,-151.0,0.0002688,7]
[366853177,1750516247726,-151.0,0.0002688,7]
[366853178,1750516247735,-151.0,0.0002688,7]
[366853179,1750516247745,-151.0,0.0002688,7]
[366853180,1750516247755,-187.996856,0.0002688,7]
[366853181,1750516247764,-285.626269,0.0002688,7]
[366853182,1750516247774,-285.626269,0.0002688,7]
[366853183,1750516247783,-151.0,0.0002688,7]
[366853184,1750516247793,-225.209043,0.0002688,7]
[366853185,1750516247803,-225.209043,0.0002688,7]
[366853186,1750516247813,-201.301542,0.0002688,7]
[366853187,1750516247822,-152.079721,0.0002688,7]
[366853188,1750516247832,-151.0,0.0002688,7]
[366853189,1750516247841,-151.0,0.0002688,7]
[366853190,1750516247850,-151.0,0.0002688,7]
[366853191,1750516247859,-151.0,0.0002688,7]
[366853192,1750516247868,-151.0,0.0002688,7]
[366853193,1750516247877,-151.0,0.0002688,7]
[366853194,1750516247887,-151.0,0.0002688,7]
[366853195,1750516247896,-151.0,0.0002688,7]
[366853196,1750516247904,-151.0,0.0002688,7]
[366853197,1750516247914,-243.516087,0.0002688,7]
[366853198,1750516247925,-243.516087,0.0002688,7]
[366853199,1750516247935,-151.0,0.0002688,7]
[366853200,1750516247944,-151.0,0.0002688,7]
[366853201,1750516247955,-151.0,0.0002688,7]
[366853202,1750516247964,-151.0,0.0002688,7]
[366853203,1750516247974,-151.0,0.0002688,7]
[366853204,1750516247984,-151.0,0.0002688,7]
[366853205,1750516247997,-151.0,0.0002688,7]
[366853206,1750516248008,-459.673518,0.0002688,7]
[366853207,1750516248018,-459.673518,0.0002688,7]
[366853208,1750516248027,-914.748671,0.0002688,7]
[366853209,1750516248037,-914.748671,0.0002688,7]
[366853210,1750516248048,-162.24697,0.0002688,7]
[366853211,1750516248057,-210.461369,0.0002688,7]
[366853212,1750516248068,-151.0,0.0002688,7]
[366853213,1750516248078,-151.0,0.0002688,7]
[366853214,1750516248087,-151.0,0.0002688,7]
[366853215,1750516248098,-151.0,0.0002688,7]
[366853216,1750516248108,-151.0,0.0002688,7]
[366853217,1750516248117,-151.0,0.0002688,7]
[366853218,1750516248127,-159.160129,0.0002688,7]
[366853219,1750516248137,-159.160129,0.0002688,7]
[366853220,1750516248147,-151.0,0.0002688,7]
[366853221,1750516248156,-151.0,0.0002688,7]
[366853222,1750516248166,-151.0,0.0002688,7]
[366853223,1750516248176,-151.0,0.0002688,7]
[366853224,1750516248186,-151.0,0.0002688,7]
[366853225,1750516248196,-151.0,0.0002688,7]
[366853226,1750516248205,-151.0,0.0002688,7]
[366853227,1750516248215,-151.0,0.0002688,7]
[366853228,1750516248225,-151.0,0.0002688,7]
[366853229,1750516248235,-151.0,0.0002688,7]
[366853230,1750516248245,-151.0,0.0002688,7]
[366853231,1750516248254,-151.0,0.0002688,7]
[366853232,1750516248264,-167.21979,0.0002688,7]
[366853233,1750516248273,-167.21979,0.0002688,7]
[366853234,1750516248283,-273.847944,0.0002688,7]
[366853235,1750516248293,-151.0,0.0002688,7]
[366853236,1750516248303,-151.0,0.0002688,7]
[366853237,1750516248313,-273.847944,0.0002688,7]
[366853238,1750516248323,-151.0,0.0002688,7]
[366853239,1750516248333,-151.0,0.0002688,7]
[366853240,1750516248343,-151.0,0.0002688,7]
[366853241,1750516248354,-151.0,0.0002688,7]
[366853242,1750516248364,-151.0,0.0002688,7]
[366853243,1750516248373,-151.0,0.0002688,7]
[366853244,1750516248383,-151.251723,0.0002688,7]
[366853245,1750516248393,-151.0,0.0002688,7]
[366853246,1750516248403,-1834.323179,0.0002688,7]
[366853247,1750516248413,-225.21464,0.0002688,7]
[366853248,1750516248423,-225.21464,0.0002688,7]
[366853249,1750516248434,-867.160274,0.0002688,7]
[366853250,1750516248444,-867.160274,0.0002688,7]
[366853251,1750516248455,-151.0,0.0002688,7]
[366853252,1750516248465,-151.0,0.0002688,7]
[366853253,1750516248475,-151.0,0.0002688,7]
[366853254,1750516248484,-157.861356,0.0002688,7]
[366853255,1750516248494,-151.0,0.0002688,7]
[366853256,1750516248505,-151.0,0.0002688,7]
[366853257,1750516248514,-151.0,0.0002688,7]
[366853258,1750516248524,-151.0,0.0002688,7]
[366853259,1750516248534,-151.0,0.0002688,7]
[366853260,1750516248543,-151.0,0.0002688,7]
[366853261,1750516248553,-151.0,0.0002688,7]
[366853262,1750516248563,-151.0,0.0002688,7]
[366853263,1750516248573,-151.0,0.0002688,7]
[366853264,1750516248583,-250.461245,0.0002688,7]
[366853265,1750516248593,-250.461245,0.0002688,7]
[366853266,1750516248602,-151.0,0.0002688,7]
[366853267,1750516248612,-151.0,0.0002688,7]
[366853268,1750516248621,-151.0,0.0002688,7]
[366853269,1750516248632,-151.0,0.0002688,7]
[366853270,1750516248642,-151.0,0.0002688,7]
[366853271,1750516248652,-544.562858,0.0002688,7]
[366853272,1750516248663,-544.562858,0.0002688,7]
[366853273,1750516248674,-151.0,0.0002688,7]
[366853274,1750516248686,-151.0,0.0002688,7]
[366853275,1750516248697,-151.0,0.0002688,7]
[366853276,1750516248707,-300.0,0.00026899,10]
[366853277,1750516248716,-300.0,0.00026899,10]
[366853278,1750516248727,-382.63220106,0.00026899,10]
[366853279,1750516248737,-113406.35,0.000269,7]
[366853280,1750516248747,-151.0,0.000269,7]
[366853281,1750516248757,-151.0,0.000269,7]
[366853282,1750516248768,-151.0,0.000269,7]
[366853283,1750516248779,-151.977438,0.000269,7]
[366853284,1750516248789,-151.0,0.000269,7]
[366853285,1750516248799,-151.0,0.000269,7]
[366853286,1750516248809,-151.0,0.000269,7]
[366853287,1750516248819,-151.0,0.000269,7]
[366853288,1750516248829,-151.0,0.000269,7]
[366853289,1750516248839,-167.21979,0.000269,7]
[366853290,1750516248850,-167.21979,0.000269,7]
[366853291,1750516248860,-273.847944,0.000269,7]
[366853292,1750516248870,-273.847944,0.000269,7]
[366853293,1750516248881,-151.0,0.000269,7]
[366853294,1750516248892,-151.0,0.000269,7]
[366853295,1750516248903,-151.0,0.000269,7]
[366853296,1750516248913,-151.0,0.000269,7]
[366853297,1750516248927,-151.0,0.000269,7]
[366853298,1750516248939,-151.0,0.000269,7]
[366853299,1750516248949,-151.0,0.000269,7]
[366853300,1750516248960,-151.0,0.000269,7]
[366853301,1750516248971,-151.0,0.000269,7]
[366853302,1750516248981,-151.0,0.000269,7]
[366853303,1750516248991,-151.733356,0.000269,7]
[366853304,1750516249002,-779.074152,0.000269,7]
[366853305,1750516249012,-779.074152,0.000269,7]
[366853306,1750516249023,-151.0,0.000269,7]
[366853307,1750516249033,-151.0,0.000269,7]
[366853308,1750516249043,-151.0,0.000269,7]
[366853309,1750516249054,-151.0,0.000269,7]
[366853310,1750516249065,-151.0,0.000269,7]
[366853311,1750516249076,-206.306235,0.000269,7]
[366853312,1750516249088,-206.306235,0.000269,7]
[366853313,1750516249099,-158.81828779,0.000269,2]
[366853314,1750516249109,-1554.96028468,0.000269,2]
[366853315,1750516249121,-229.97084802,0.000269,2]
[366853316,1750516249132,-232.165969,0.000269,7]
[366853317,1750516249142,-328.122819,0.000269,7]
[366853318,1750516249153,-232.165969,0.000269,7]
[366853319,1750516249164,-328.122819,0.000269,7]
[366853320,1750516249174,-7697.1310959,0.00026928,2]